[Event "MCR rapid mládeže 2023 U16"]
[Site "Harachov, Czech Republic"]
[Date "2023.09.09"]
[Round "6.19"]
[White "Rudlof, Adam"]
[Black "Mydlar, Matej"]
[Result "1/2-1/2"]
[TimeControl "20min+5s/move"]
[WhiteElo "1436"]
[BlackElo "1711"]

1. e4 {[%clk 00:20:07]} {[%emt 00:00:01]} c5 {[%clk 00:20:10]} {[%emt
00:00:02]} 2. Nf3 {[%clk 00:20:11]} {[%emt 00:00:01]} d6 {[%clk 00:20:11]}
{[%emt 00:00:03]} 3. d4 {[%clk 00:20:15]} {[%emt 00:00:01]} cxd4 4. Nxd4 {[%clk
00:20:18]} Nf6 {[%clk 00:20:20]} 5. Nc3 {[%clk 00:20:22]} {[%emt 00:00:02]} Nc6
{[%clk 00:20:23]} {[%emt 00:00:02]} 6. Bg5 {[%clk 00:20:23]} {[%emt 00:00:03]}
e6 {[%clk 00:20:04]} {[%emt 00:00:24]} 7. Qd2 {[%clk 00:20:25]} {[%emt
00:00:02]} a6 {[%clk 00:19:58]} {[%emt 00:00:12]} 8. O-O-O {[%clk 00:20:26]}
{[%emt 00:00:04]} h6 {[%clk 00:19:44]} {[%emt 00:00:19]} 9. Bh4 {[%clk
00:19:25]} {[%emt 00:01:06]} Be7 {[%clk 00:18:37]} {[%emt 00:01:11]} 10. f4
{[%clk 00:19:18]} {[%emt 00:00:12]} Bd7 {[%clk 00:15:43]} {[%emt 00:02:59]} 11.
Nf3 {[%clk 00:19:19]} {[%emt 00:00:04]} b5 {[%clk 00:15:38]} {[%emt 00:00:10]}
12. Bxf6 {[%clk 00:17:59]} {[%emt 00:01:26]} gxf6 {[%clk 00:15:40]} {[%emt
00:00:03]} 13. Kb1 {[%clk 00:18:01]} {[%emt 00:00:02]} Rc8 {[%clk 00:15:33]}
{[%emt 00:00:13]} 14. g3 {[%clk 00:17:51]} {[%emt 00:00:15]} Na5 {[%clk
00:15:11]} {[%emt 00:00:27]} 15. Bd3 {[%clk 00:17:30]} {[%emt 00:00:25]} Nc4
{[%clk 00:15:12]} {[%emt 00:00:05]} 16. Bxc4 {[%clk 00:17:34]} {[%emt
00:00:01]} Rxc4 {[%clk 00:15:14]} {[%emt 00:00:03]} 17. Rhe1 {[%clk 00:17:37]}
{[%emt 00:00:02]} b4 {[%clk 00:14:46]} {[%emt 00:00:33]} 18. Ne2 {[%clk
00:17:33]} {[%emt 00:00:08]} Rxe4 {[%clk 00:14:04]} {[%emt 00:00:47]} 19. Qd3
{[%clk 00:17:21]} {[%emt 00:00:15]} d5 {[%clk 00:13:38]} {[%emt 00:00:34]} 20.
Qxa6 {[%emt 00:01:04]} Rc4 {[%clk 00:13:04]} {[%emt 00:00:36]} 21. Nfd4 {[%clk
00:14:12]} {[%emt 00:02:17]} O-O {[%clk 00:07:09]} {[%emt 00:06:02]} 22. b3
{[%clk 00:13:58]} {[%emt 00:00:18]} Rc5 {[%clk 00:06:55]} {[%emt 00:00:16]} 23.
Qd3 {[%clk 00:13:50]} {[%emt 00:00:13]} Qc8 {[%clk 00:05:38]} {[%emt 00:01:24]}
24. Qe3 {[%clk 00:10:46]} {[%emt 00:03:05]} Bd6 {[%clk 00:03:30]} {[%emt
00:02:16]} 25. Rc1 {[%clk 00:05:31]} {[%emt 00:05:21]} Qa6 {[%clk 00:02:31]}
{[%emt 00:01:02]} 26. Qd3 {[%clk 00:04:29]} {[%emt 00:01:08]} Qxd3 {[%clk
00:02:02]} {[%emt 00:00:36]} 27. cxd3 {[%clk 00:04:32]} {[%emt 00:00:01]} Rfc8
{[%clk 00:02:06]} {[%emt 00:00:01]} 28. Rxc5 {[%clk 00:04:21]} {[%emt
00:00:17]} Rxc5 {[%clk 00:02:08]} {[%emt 00:00:02]} 29. Rc1 {[%clk 00:04:20]}
{[%emt 00:00:06]} e5 {[%clk 00:02:05]} {[%emt 00:00:08]} 30. Rxc5 {[%clk
00:03:53]} {[%emt 00:00:33]} Bxc5 {[%clk 00:01:50]} {[%emt 00:00:20]} 31. Nf3
{[%clk 00:03:08]} {[%emt 00:00:49]} Bf5 {[%clk 00:01:52]} {[%emt 00:00:03]} 32.
Kc2 {[%clk 00:01:45]} {[%emt 00:01:28]} e4 {[%clk 00:01:43]} {[%emt 00:00:14]}
33. Ne1 {[%clk 00:01:48]} {[%emt 00:00:02]} Bf2 {[%clk 00:01:25]} {[%emt
00:00:23]} 34. Kd2 {[%clk 00:00:44]} {[%emt 00:01:10]} e3+ {[%clk 00:00:53]}
{[%emt 00:00:36]} 35. Kd1 {[%clk 00:00:45]} {[%emt 00:00:05]} Bxe1 {[%clk
00:00:54]} {[%emt 00:00:04]} 36. Kxe1 {[%clk 00:00:49]} {[%emt 00:00:02]} Bxd3
{[%clk 00:00:57]} {[%emt 00:00:01]} 37. Nd4 {[%clk 00:00:53]} {[%emt 00:00:01]}
Bb1 {[%clk 00:00:57]} {[%emt 00:00:05]} 38. Nc6 {[%clk 00:00:43]} {[%emt
00:00:15]} Bxa2 {[%clk 00:01:00]} {[%emt 00:00:02]} 39. Nxb4 {[%clk 00:00:47]}
{[%emt 00:00:01]} Bxb3 {[%clk 00:01:03]} {[%emt 00:00:02]} 40. Ke2 {[%clk
00:00:48]} {[%emt 00:00:03]} d4 {[%clk 00:00:45]} {[%emt 00:00:23]} 41. Nc6
{[%clk 00:00:45]} {[%emt 00:00:07]} Bc4+ {[%clk 00:00:48]} {[%emt 00:00:04]} 42.
Ke1 {[%clk 00:00:45]} {[%emt 00:00:05]} d3 {[%clk 00:00:50]} {[%emt 00:00:03]}
43. Nd4 {[%clk 00:00:29]} {[%emt 00:00:20]} d2+ {[%clk 00:00:52]} {[%emt
00:00:04]} 44. Kd1 {[%clk 00:00:22]} {[%emt 00:00:09]} Kf8 {[%clk 00:00:49]}
{[%emt 00:00:10]} 45. Kc2 {[%clk 00:00:10]} {[%emt 00:00:17]} Ke7 {[%clk
00:00:26]} {[%emt 00:00:26]} 46. Nf5+ {[%clk 00:00:12]} {[%emt 00:00:07]} Ke6
{[%clk 00:00:20]} {[%emt 00:00:06]} 47. Nxe3 {[%clk 00:00:15]} {[%emt
00:00:05]} Ba6 {[%clk 00:00:13]} {[%emt 00:00:13]} 48. Kxd2 {[%clk 00:00:19]}
{[%emt 00:00:01]} f5 {[%clk 00:00:17]} {[%emt 00:00:02]} 49. Kc3 {[%clk
00:00:16]} {[%emt 00:00:07]} f6 {[%clk 00:00:18]} {[%emt 00:00:04]} 50. Kd4
{[%clk 00:00:20]} h5 {[%clk 00:00:18]} {[%emt 00:00:05]} 51. Nd5 {[%clk
00:00:19]} {[%emt 00:00:07]} Bf1 {[%clk 00:00:17]} {[%emt 00:00:03]} 52. Nc7+
{[%clk 00:00:18]} {[%emt 00:00:08]} Kd6 {[%clk 00:00:19]} {[%emt 00:00:03]} 53.
Ne8+ {[%clk 00:00:14]} {[%emt 00:00:09]} Ke7 {[%clk 00:00:14]} {[%emt
00:00:09]} 54. Ng7 {[%clk 00:00:09]} {[%emt 00:00:11]} Be2 {[%clk 00:00:09]}
{[%emt 00:00:10]} 55. Nxf5+ {[%clk 00:00:13]} {[%emt 00:00:02]} Ke6 {[%clk
00:00:07]} {[%emt 00:00:06]} 56. Ne3 {[%clk 00:00:15]} {[%emt 00:00:04]} f5
{[%clk 00:00:09]} {[%emt 00:00:02]} 57. Ng2 {[%clk 00:00:15]} {[%emt 00:00:05]}
Bf3 {[%clk 00:00:09]} {[%emt 00:00:06]} 58. Nh4 {[%clk 00:00:19]} {[%emt
00:00:01]} Be4 {[%clk 00:00:12]} {[%emt 00:00:02]} 59. Ng6 {[%clk 00:00:15]}
{[%emt 00:00:09]} Kf6 {[%clk 00:00:12]} {[%emt 00:00:04]} 60. Ne5 {[%clk
00:00:18]} {[%emt 00:00:02]} Bb1 {[%clk 00:00:14]} {[%emt 00:00:03]} 61. h3
{[%clk 00:00:18]} {[%emt 00:00:06]} Bc2 {[%clk 00:00:15]} {[%emt 00:00:04]} 62.
g4 {[%clk 00:00:18]} {[%emt 00:00:04]} hxg4 {[%clk 00:00:19]} {[%emt 00:00:02]}
63. hxg4 {[%clk 00:00:22]} {[%emt 00:00:01]} fxg4 {[%clk 00:00:22]} {[%emt
00:00:02]} 64. Nxg4+ {[%clk 00:00:26]} {[%emt 00:00:01]} Kf5 {[%clk 00:00:25]}
{[%emt 00:00:02]} 65. Ne3+ {[%clk 00:00:28]} {[%emt 00:00:02]} Kxf4 {[%clk
00:00:29]} {[%emt 00:00:02]} 66. Nxc2 {[%clk 00:00:32]} Ke5+ {[%clk 00:00:28]}
{[%emt 00:00:05]} 1/2-1/2

[Event "MCR rapid mládeže 2023 U16"]
[Site "Harachov, Czech Republic"]
[Date "2023.09.09"]
[Round "6.20"]
[White "Sotek, Matej"]
[Black "Frantsev, Iegor"]
[Result "1-0"]
[TimeControl "20min+5s/move"]
[WhiteElo "1410"]
[BlackElo "1431"]

1. e4 {[%clk 00:20:08]} c6 {[%clk 00:20:03]} {[%emt 00:00:08]} 2. Nf3 {[%clk
00:20:02]} {[%emt 00:00:11]} d5 {[%clk 00:20:05]} {[%emt 00:00:03]} 3. exd5
{[%clk 00:20:06]} {[%emt 00:00:01]} cxd5 {[%clk 00:20:08]} {[%emt 00:00:01]} 4.
d4 {[%clk 00:20:10]} Bg4 {[%clk 00:20:10]} {[%emt 00:00:04]} 5. Nc3 {[%clk
00:20:07]} {[%emt 00:00:08]} e6 {[%clk 00:20:11]} {[%emt 00:00:04]} 6. h3
{[%clk 00:20:01]} {[%emt 00:00:11]} Bxf3 {[%clk 00:20:12]} {[%emt 00:00:03]} 7.
Qxf3 {[%clk 00:20:02]} {[%emt 00:00:05]} Nc6 {[%clk 00:20:15]} {[%emt
00:00:02]} 8. Bb5 {[%clk 00:19:27]} {[%emt 00:00:40]} Nf6 {[%clk 00:19:58]}
{[%emt 00:00:20]} 9. Bg5 {[%clk 00:19:13]} {[%emt 00:00:21]} Be7 {[%clk
00:19:50]} {[%emt 00:00:13]} 10. a3 {[%clk 00:18:35]} {[%emt 00:00:43]} O-O
{[%clk 00:19:39]} {[%emt 00:00:15]} 11. Bxc6 {[%clk 00:18:28]} {[%emt
00:00:13]} bxc6 {[%clk 00:19:40]} {[%emt 00:00:03]} 12. O-O {[%clk 00:18:27]}
{[%emt 00:00:06]} Nd7 {[%clk 00:19:20]} {[%emt 00:00:24]} 13. Bxe7 {[%clk
00:18:26]} {[%emt 00:00:08]} Qxe7 {[%clk 00:19:20]} {[%emt 00:00:04]} 14. Rfe1
{[%clk 00:18:11]} {[%emt 00:00:21]} Rab8 {[%clk 00:18:32]} {[%emt 00:00:52]} 15.
b3 {[%clk 00:17:21]} {[%emt 00:00:55]} Rfc8 {[%clk 00:16:57]} {[%emt 00:01:37]}
16. Na4 {[%clk 00:16:22]} {[%emt 00:01:08]} Qg5 {[%clk 00:11:57]} {[%emt
00:04:59]} 17. Qe3 {[%clk 00:11:53]} {[%emt 00:04:40]} Qxe3 {[%clk 00:11:48]}
{[%emt 00:00:13]} 18. Rxe3 {[%clk 00:08:47]} {[%emt 00:03:11]} c5 {[%clk
00:11:22]} {[%emt 00:00:29]} 19. dxc5 {[%clk 00:07:38]} {[%emt 00:01:16]} Nxc5
{[%clk 00:11:15]} {[%emt 00:00:12]} 20. Nxc5 {[%clk 00:07:38]} {[%emt
00:00:05]} Rxc5 {[%clk 00:11:17]} {[%emt 00:00:03]} 21. Re2 {[%clk 00:07:42]}
{[%emt 00:00:02]} Rbc8 {[%clk 00:11:06]} {[%emt 00:00:16]} 22. Ra2 {[%clk
00:07:29]} {[%emt 00:00:18]} h6 {[%clk 00:11:03]} {[%emt 00:00:08]} 23. Kf1
{[%clk 00:07:31]} {[%emt 00:00:03]} Rc3 {[%clk 00:10:50]} {[%emt 00:00:17]} 24.
Ke1 {[%clk 00:07:09]} {[%emt 00:00:27]} Kf8 {[%clk 00:10:10]} {[%emt 00:00:46]}
25. Kd2 {[%clk 00:07:11]} {[%emt 00:00:03]} Ke7 {[%clk 00:08:45]} {[%emt
00:01:29]} 26. Re3 {[%clk 00:07:15]} {[%emt 00:00:01]} R3c5 {[%clk 00:08:09]}
{[%emt 00:00:41]} 27. Rg3 {[%clk 00:07:09]} {[%emt 00:00:11]} g5 {[%clk
00:07:35]} {[%emt 00:00:39]} 28. Rg4 {[%clk 00:06:50]} {[%emt 00:00:25]} e5
{[%clk 00:05:52]} {[%emt 00:01:47]} 29. Ra4 {[%clk 00:06:52]} {[%emt 00:00:04]}
R8c7 {[%clk 00:03:20]} {[%emt 00:02:38]} 30. Ra6 {[%clk 00:06:45]} {[%emt
00:00:11]} R5c6 {[%clk 00:02:57]} {[%emt 00:00:28]} 31. Rxc6 {[%clk 00:06:41]}
{[%emt 00:00:09]} Rxc6 {[%clk 00:03:01]} {[%emt 00:00:01]} 32. b4 {[%clk
00:06:37]} {[%emt 00:00:09]} Rb6 {[%clk 00:02:31]} {[%emt 00:00:34]} 33. Kd3
{[%clk 00:06:33]} {[%emt 00:00:09]} Kd6 {[%clk 00:02:01]} {[%emt 00:00:35]} 34.
c4 {[%clk 00:06:26]} {[%emt 00:00:13]} e4+ {[%clk 00:01:28]} {[%emt 00:00:38]}
35. Kd4 {[%clk 00:05:54]} {[%emt 00:00:37]} dxc4 {[%clk 00:01:26]} {[%emt
00:00:06]} 36. Kxe4 {[%clk 00:05:41]} {[%emt 00:00:18]} Rc6 {[%clk 00:01:04]}
{[%emt 00:00:27]} 37. Kd4 {[%clk 00:05:42]} {[%emt 00:00:05]} f5 {[%clk
00:00:45]} {[%emt 00:00:24]} 38. b5 {[%clk 00:05:39]} {[%emt 00:00:08]} Rc5
{[%clk 00:00:26]} {[%emt 00:00:24]} 39. a4 {[%clk 00:05:43]} {[%emt 00:00:01]}
c3 {[%clk 00:00:23]} {[%emt 00:00:08]} 40. Rc2 {[%clk 00:05:01]} {[%emt
00:00:47]} a6 {[%clk 00:00:13]} {[%emt 00:00:15]} 41. Rxc3 {[%clk 00:03:58]}
{[%emt 00:01:08]} Rd5+ {[%clk 00:00:13]} {[%emt 00:00:06]} 42. Kc4 {[%clk
00:03:19]} {[%emt 00:00:43]} axb5+ {[%clk 00:00:10]} {[%emt 00:00:08]} 43. axb5
{[%clk 00:03:10]} {[%emt 00:00:14]} Rd2 {[%clk 00:00:13]} {[%emt 00:00:02]} 44.
Rd3+ {[%clk 00:02:40]} {[%emt 00:00:36]} Rxd3 {[%clk 00:00:13]} {[%emt
00:00:05]} 45. Kxd3 {[%clk 00:02:44]} {[%emt 00:00:01]} Kc5 {[%clk 00:00:17]}
46. b6 {[%clk 00:02:42]} {[%emt 00:00:07]} Kxb6 {[%clk 00:00:21]} {[%emt
00:00:01]} 47. Kd4 {[%emt 00:00:01]} Kc6 {[%clk 00:00:21]} {[%emt 00:00:04]} 48.
Ke5 {[%clk 00:02:51]} f4 {[%clk 00:00:25]} {[%emt 00:00:02]} 49. Kf5 {[%clk
00:02:54]} {[%emt 00:00:01]} Kd6 {[%clk 00:00:29]} {[%emt 00:00:01]} 50. Kg6
{[%clk 00:02:59]} Ke6 {[%clk 00:00:33]} {[%emt 00:00:01]} 51. Kxh6 {[%clk
00:03:02]} {[%emt 00:00:02]} Kf6 {[%clk 00:00:32]} {[%emt 00:00:06]} 52. f3
{[%clk 00:03:04]} {[%emt 00:00:03]} Kf5 {[%clk 00:00:30]} {[%emt 00:00:06]} 53.
Kg7 {[%clk 00:03:06]} {[%emt 00:00:03]} g4 {[%clk 00:00:30]} {[%emt 00:00:05]}
54. hxg4+ {[%clk 00:03:07]} {[%emt 00:00:05]} Kg5 {[%clk 00:00:33]} {[%emt
00:00:02]} 55. Kf7 {[%clk 00:03:09]} {[%emt 00:00:03]} Kh4 {[%clk 00:00:33]}
{[%emt 00:00:04]} 56. Kf6 {[%clk 00:03:06]} {[%emt 00:00:08]} Kg3 {[%clk
00:00:37]} {[%emt 00:00:02]} 57. Kf5 {[%clk 00:03:09]} {[%emt 00:00:02]} Kh4
{[%clk 00:00:34]} {[%emt 00:00:08]} 58. g5 {[%clk 00:03:03]} {[%emt 00:00:10]}
Kh5 {[%clk 00:00:38]} {[%emt 00:00:02]} 59. Kxf4 {[%clk 00:03:05]} {[%emt
00:00:03]} Kg6 {[%clk 00:00:42]} {[%emt 00:00:01]} 60. Kg4 {[%clk 00:03:09]}
Kg7 {[%clk 00:00:45]} {[%emt 00:00:01]} 61. f4 {[%clk 00:03:13]} {[%emt
00:00:01]} Kg6 {[%clk 00:00:49]} 62. f5+ {[%clk 00:03:17]} {[%emt 00:00:03]}
Kg7 {[%clk 00:00:54]} 63. Kh5 {[%clk 00:03:21]} {[%emt 00:00:01]} Kh7 {[%clk
00:00:57]} {[%emt 00:00:02]} 64. f6 {[%clk 00:03:25]} {[%emt 00:00:01]} Kg8
{[%clk 00:01:02]} {[%emt 00:00:01]} 65. g6 {[%clk 00:03:29]} {[%emt 00:00:01]}
Kf8 {[%clk 00:01:05]} {[%emt 00:00:01]} 66. g4 {[%clk 00:03:32]} {[%emt
00:00:02]} Kg8 {[%clk 00:01:09]} {[%emt 00:00:01]} 67. g5 {[%clk 00:03:36]} Kf8
{[%clk 00:01:13]} {[%emt 00:00:02]} 68. Kh6 {[%clk 00:03:40]} Kg8 {[%clk
00:01:17]} 69. f7+ {[%clk 00:03:43]} {[%emt 00:00:02]} Kf8 {[%clk 00:01:21]}
{[%emt 00:00:01]} 70. Kh7 {[%clk 00:03:48]} Ke7 {[%clk 00:01:25]} {[%emt
00:00:01]} 71. g7 {[%clk 00:03:51]} {[%emt 00:00:02]} 1-0

[Event "MCR rapid mládeže 2023 U16"]
[Site "Harachov, Czech Republic"]
[Date "2023.09.09"]
[Round "6.21"]
[White "Walder, Hugo"]
[Black "Chernyy, Andrey"]
[Result "1/2-1/2"]
[TimeControl "20min+5s/move"]
[WhiteElo "1403"]
[BlackElo "1582"]

1. e4 {[%clk 00:20:04]} {[%emt 00:00:05]} e5 {[%clk 00:20:13]} {[%emt
00:00:01]} 2. Nf3 {[%clk 00:20:08]} {[%emt 00:00:02]} Nc6 {[%clk 00:20:16]}
{[%emt 00:00:02]} 3. Bc4 {[%clk 00:20:11]} {[%emt 00:00:01]} Nf6 {[%clk
00:20:19]} {[%emt 00:00:03]} 4. d3 {[%clk 00:20:15]} {[%emt 00:00:01]} Be7
{[%clk 00:20:22]} {[%emt 00:00:02]} 5. Nc3 {[%clk 00:20:18]} {[%emt 00:00:02]}
O-O {[%clk 00:20:21]} {[%emt 00:00:06]} 6. O-O {[%clk 00:20:20]} {[%emt
00:00:03]} d6 {[%clk 00:20:24]} {[%emt 00:00:02]} 7. h3 {[%clk 00:20:24]}
{[%emt 00:00:01]} h6 {[%clk 00:20:13]} {[%emt 00:00:17]} 8. Nh2 {[%clk
00:20:19]} {[%emt 00:00:08]} Be6 {[%clk 00:19:53]} {[%emt 00:00:25]} 9. Bb3
{[%clk 00:20:21]} {[%emt 00:00:03]} Nd4 {[%clk 00:19:45]} {[%emt 00:00:13]} 10.
Be3 {[%clk 00:20:22]} {[%emt 00:00:05]} Nxb3 {[%clk 00:19:44]} {[%emt
00:00:06]} 11. axb3 {[%clk 00:20:25]} {[%emt 00:00:02]} a6 {[%clk 00:19:31]}
{[%emt 00:00:17]} 12. f4 {[%clk 00:20:08]} {[%emt 00:00:22]} exf4 {[%clk
00:19:24]} {[%emt 00:00:12]} 13. Bxf4 {[%clk 00:20:11]} {[%emt 00:00:03]} Nh7
{[%clk 00:17:23]} {[%emt 00:02:06]} 14. Qd2 {[%clk 00:19:45]} {[%emt 00:00:31]}
Bg5 {[%clk 00:16:59]} {[%emt 00:00:29]} 15. Bxg5 {[%clk 00:19:41]} {[%emt
00:00:09]} Qxg5 {[%clk 00:16:33]} {[%emt 00:00:31]} 16. Qxg5 {[%clk 00:19:38]}
{[%emt 00:00:07]} Nxg5 {[%clk 00:16:36]} {[%emt 00:00:02]} 17. Nf3 {[%clk
00:19:41]} {[%emt 00:00:03]} Nxf3+ {[%clk 00:16:24]} {[%emt 00:00:17]} 18. Rxf3
{[%clk 00:19:43]} {[%emt 00:00:02]} c6 {[%clk 00:16:27]} {[%emt 00:00:03]} 19.
Raf1 {[%clk 00:19:11]} {[%emt 00:00:37]} Rac8 {[%clk 00:16:11]} {[%emt
00:00:20]} 20. Kh2 {[%clk 00:18:45]} {[%emt 00:00:32]} d5 {[%clk 00:15:41]}
{[%emt 00:00:35]} 21. exd5 {[%clk 00:18:44]} {[%emt 00:00:06]} cxd5 {[%clk
00:15:41]} {[%emt 00:00:05]} 22. R1f2 {[%clk 00:18:28]} {[%emt 00:00:21]} Rc7
{[%clk 00:14:52]} {[%emt 00:00:54]} 23. Nd1 {[%clk 00:17:54]} {[%emt 00:00:38]}
Rfc8 {[%clk 00:14:27]} {[%emt 00:00:31]} 24. c3 {[%clk 00:17:31]} {[%emt
00:00:28]} b5 {[%clk 00:14:12]} {[%emt 00:00:20]} 25. d4 {[%clk 00:17:19]}
{[%emt 00:00:17]} Rb7 {[%clk 00:13:53]} {[%emt 00:00:24]} 26. b4 {[%clk
00:17:16]} {[%emt 00:00:08]} Ra7 {[%clk 00:13:23]} {[%emt 00:00:35]} 27. b3
{[%clk 00:17:02]} {[%emt 00:00:20]} a5 {[%clk 00:12:28]} {[%emt 00:00:59]} 28.
Ra2 {[%clk 00:16:44]} {[%emt 00:00:22]} Rca8 {[%clk 00:11:27]} {[%emt
00:01:07]} 29. bxa5 {[%clk 00:16:37]} {[%emt 00:00:12]} Rxa5 {[%clk 00:11:29]}
{[%emt 00:00:03]} 30. Rxa5 {[%clk 00:16:40]} {[%emt 00:00:02]} Rxa5 {[%clk
00:11:33]} {[%emt 00:00:01]} 31. b4 {[%clk 00:16:44]} {[%emt 00:00:01]} Ra1
{[%clk 00:11:22]} {[%emt 00:00:15]} 32. Nf2 {[%clk 00:15:57]} {[%emt 00:00:52]}
h5 {[%clk 00:10:27]} {[%emt 00:00:59]} 33. h4 {[%clk 00:14:40]} {[%emt
00:01:23]} Rc1 {[%clk 00:08:49]} {[%emt 00:01:45]} 34. Nh3 {[%clk 00:14:10]}
{[%emt 00:00:31]} g6 {[%clk 00:06:20]} {[%emt 00:02:37]} 35. Nf4 {[%clk
00:13:47]} {[%emt 00:00:28]} Re1 {[%clk 00:04:28]} {[%emt 00:01:53]} 36. Nxe6
{[%clk 00:13:03]} {[%emt 00:00:52]} fxe6 {[%clk 00:04:25]} {[%emt 00:00:09]} 37.
g3 {[%clk 00:12:15]} {[%emt 00:00:53]} Re2+ {[%clk 00:04:05]} {[%emt 00:00:25]}
38. Kg1 {[%clk 00:12:13]} {[%emt 00:00:03]} Rc2 {[%clk 00:03:56]} {[%emt
00:00:18]} 39. Kf1 {[%clk 00:11:54]} {[%emt 00:00:23]} Kg7 {[%clk 00:03:45]}
{[%emt 00:00:17]} 40. Ke1 {[%clk 00:11:48]} {[%emt 00:00:10]} Ra2 {[%clk
00:02:36]} {[%emt 00:01:15]} 41. Kf1 {[%clk 00:11:44]} {[%emt 00:00:07]} Rc2
{[%clk 00:02:04]} {[%emt 00:00:39]} 42. Ke1 {[%clk 00:11:47]} {[%emt 00:00:02]}
Ra2 {[%clk 00:02:06]} {[%emt 00:00:03]} 43. Rf2 {[%clk 00:11:48]} {[%emt
00:00:03]} Ra1+ {[%clk 00:02:03]} {[%emt 00:00:09]} 44. Ke2 {[%clk 00:11:43]}
{[%emt 00:00:08]} Ra2+ {[%clk 00:02:07]} {[%emt 00:00:03]} 45. Ke3 {[%clk
00:11:23]} {[%emt 00:00:25]} Rxf2 {[%clk 00:01:32]} {[%emt 00:00:40]} 46. Kxf2
{[%clk 00:11:26]} {[%emt 00:00:01]} Kf6 {[%clk 00:01:36]} {[%emt 00:00:02]} 47.
Ke3 {[%clk 00:11:23]} {[%emt 00:00:08]} Kf5 {[%clk 00:01:28]} {[%emt 00:00:13]}
48. Kf3 {[%clk 00:11:27]} {[%emt 00:00:01]} g5 {[%clk 00:01:15]} {[%emt
00:00:17]} 49. hxg5 {[%clk 00:10:55]} {[%emt 00:00:38]} Kxg5 {[%clk 00:01:17]}
{[%emt 00:00:03]} 50. Kg2 {[%clk 00:10:51]} {[%emt 00:00:08]} Kg4 {[%clk
00:01:10]} {[%emt 00:00:13]} 51. Kf2 {[%clk 00:10:54]} {[%emt 00:00:01]} Kg5
{[%clk 00:00:52]} {[%emt 00:00:23]} 52. Kg2 {[%clk 00:10:57]} {[%emt 00:00:01]}
Kf5 {[%clk 00:00:53]} {[%emt 00:00:05]} 53. Kf3 {[%clk 00:11:01]} {[%emt
00:00:01]} Kg5 {[%clk 00:00:57]} 54. Kg2 {[%clk 00:11:05]} {[%emt 00:00:01]}
1/2-1/2